bitfinex/quotes_SOLUSD_20240809
["timestamp","ask_amount","ask_price","bid_price","bid_amount"]
[1723202265229,27.55,156.66,156.62,6.3848]
[1723202265409,27.55,156.65,156.62,6.3848]
[1723202265604,27.55,156.65,156.63,0.25098]
[1723202266020,29.14609126,156.64,156.63,0.25098]
[1723202266427,29.14609126,156.64,156.63,0.12549]
[1723202266625,27.55,156.64,156.63,0.12549]
[1723202267235,27.55,156.65,156.62,0.12549]
[1723202267406,27.55,156.65,156.62,6.51029]
[1723202267613,0.8040129,156.7,156.64,0.12549]
[1723202267931,0.8040129,156.7,156.65,6.3835]
[1723202267932,27.55,156.68,156.65,6.3835]
[1723202268119,27.55,156.68,156.66,0.25098]
[1723202269135,27.55,156.67,156.66,0.12549]
[1723202269338,27.55,156.67,156.65,0.25098]
[1723202269552,0.8040129,156.7,156.65,0.25098]
[1723202269709,34.7359129,156.7,156.65,6.63438]
[1723202269910,0.8040129,156.7,156.65,16.84268]
[1723202270329,0.3040129,156.7,156.65,44.39268]
[1723202270643,27.8540129,156.7,156.67,0.12549]
[1723202270828,27.8540129,156.7,156.67,0.25098]
[1723202271144,29.44967281,156.7,156.67,0.25098]
[1723202272045,1.89967281,156.7,156.68,0.12549]
[1723202272226,0.3040129,156.7,156.68,0.25098]
[1723202273541,0.3040129,156.7,156.68,6.63338]
[1723202273930,0.3040129,156.7,156.69,6.50749]
[1723202274140,0.3040129,156.7,156.69,6.75847]
[1723202274317,0.3040129,156.7,156.69,6.88396]
[1723202274512,0.3040129,156.7,156.69,6.63298]
[1723202275041,0.3040129,156.7,156.69,0.25098]
[1723202275638,0.3040129,156.7,156.69,6.63298]
[1723202276857,0.3040129,156.7,156.69,6.88396]
[1723202277232,0.3040129,156.7,156.69,34.43396]
[1723202277468,0.3040129,156.7,156.69,6.88396]
[1723202277639,0.3040129,156.7,156.69,6.63298]
[1723202277842,0.3040129,156.7,156.69,0.12549]
[1723202278022,29.44962248,156.7,156.65,16.5917]
[1723202278350,0.3040129,156.7,156.68,6.3824]
[1723202278942,0.3040129,156.7,156.69,6.382]
[1723202279258,0.3040129,156.7,156.65,16.5917]
[1723202279418,0.3040129,156.7,156.66,0.25098]
[1723202279845,29.44953078,156.7,156.66,0.12549]
[1723202280036,29.44953078,156.7,156.66,6.50839]
[1723202280244,1.89953078,156.7,156.67,6.3827]
[1723202280438,0.3040129,156.7,156.68,6.50779]
[1723202280628,0.3040129,156.7,156.69,6.50749]
[1723202280950,0.3040129,156.7,156.69,6.382]
[1723202281240,0.3040129,156.7,156.69,6.63298]
[1723202281443,27.8540129,156.7,156.69,0.25098]
[1723202282019,0.3040129,156.7,156.69,0.25098]
[1723202282226,35.83120926,156.7,156.65,22.9752]
[1723202282435,27.55,156.69,156.65,22.9752]
[1723202282626,27.55,156.69,156.67,6.3826]
[1723202282835,0.3040129,156.7,156.68,6.3823]
[1723202283032,0.3040129,156.7,156.69,6.382]
[1723202283423,0.3040129,156.7,156.69,6.50749]
[1723202283634,0.3040129,156.7,156.69,6.63298]
[1723202284038,0.3040129,156.7,156.69,6.88396]
[1723202285354,0.3040129,156.7,156.69,0.25098]
[1723202285728,0.3040129,156.7,156.69,0.12549]
[1723202286731,0.3040129,156.7,156.69,6.50749]
[1723202287047,0.3040129,156.7,156.69,6.63298]
[1723202287548,0.3040129,156.7,156.69,34.43396]
[1723202288422,0.3040129,156.7,156.69,6.88396]
[1723202288654,0.3040129,156.7,156.69,6.63298]
[1723202288943,0.3040129,156.7,156.67,6.3824]
[1723202289525,27.8540129,156.7,156.66,6.3831]
[1723202289738,27.55,156.68,156.65,22.9752]
[1723202289936,27.55,156.68,156.54,20.0]
[1723202289937,6.3839,156.65,156.6,15.1702]
[1723202290147,27.55,156.65,156.62,6.3848]
[1723202290549,27.55,156.66,156.63,6.3844]
[1723202290733,27.55,156.66,156.6,15.1702]
[1723202290734,27.55,156.67,156.64,6.3838]
[1723202291124,27.55,156.67,156.63,6.3843]
[1723202291337,27.55,156.66,156.62,6.3848]
[1723202291745,27.55,156.65,156.63,0.12549]
[1723202291927,35.53042826,156.64,156.56,44.2002]
[1723202292131,27.55,156.63,156.56,44.2002]
[1723202292436,27.55,156.57,156.52,15.3781]
[1723202292648,27.55,156.56,156.52,15.3781]
[1723202293429,27.55,156.57,156.52,15.3781]
[1723202293725,27.55,156.57,156.5,27.55]
[1723202293930,27.55,156.57,156.55,6.3876]
[1723202294229,27.55,156.59,156.53,27.55]
[1723202294831,27.55,156.55,156.49,15.2891]
[1723202295049,27.55,156.55,156.47,6.4077]
[1723202295050,27.55,156.51,156.46,6.6351238]
[1723202295237,27.55,156.5,156.45,15.0027]
[1723202295437,27.55,156.49,156.46,6.3912]
[1723202295644,27.55,156.49,156.47,6.3909]
[1723202295950,6.3885,156.53,156.48,6.3905]
[1723202296145,27.55,156.51,156.5,6.3897]
[1723202296453,27.55,156.53,156.46,27.55]
[1723202296649,27.55,156.53,156.47,0.50196]
[1723202297046,27.55,156.5,156.46,6.3913]
[1723202297240,27.55,156.48,156.46,6.3913]
[1723202297756,35.34,156.5,156.47,6.3909]
[1723202298552,35.34,156.5,156.48,0.25098]
[1723202302159,35.34,156.5,156.49,0.12549]
[1723202302365,35.34,156.5,156.47,6.64188]
[1723202303450,35.34,156.52,156.49,0.12549]
[1723202303651,35.34,156.54,156.47,0.25098]
[1723202303862,20.0,156.53,156.47,0.25098]
[1723202304153,35.34,156.54,156.47,0.25098]
[1723202304353,41.7281,156.54,156.5,0.12549]
[1723202304560,41.7281,156.54,156.5,0.25098]
[1723202307741,8.19899008,156.57,156.5,0.25098]
[1723202307939,35.34,156.55,156.5,0.25098]
[1723202308139,35.34,156.53,156.5,0.25098]
[1723202308346,45.0,156.56,156.43,6.2197]
[1723202308347,35.34,156.51,156.48,0.12549]
[1723202308546,41.7294,156.51,156.48,0.12549]
[1723202308762,41.7294,156.51,156.46,6.3913]
[1723202309147,35.34,156.51,156.47,6.3909]
[1723202309563,35.34,156.51,156.49,6.39]
[1723202309747,35.34,156.51,156.43,6.2197]
[1723202309748,35.34,156.51,156.47,6.3905]
[1723202310255,41.7305,156.49,156.44,6.3921]
[1723202310455,35.34,156.49,156.45,6.3916]
[1723202310664,7.98625315,156.54,156.49,6.3901]
[1723202310862,20.0,156.53,156.49,6.3901]
[1723202311060,26.3886,156.53,156.48,6.3905]
[1723202311364,41.7293,156.52,156.47,6.3909]
[1723202311565,41.7293,156.52,156.48,6.3905]
[1723202311866,35.34,156.5,156.47,0.12549]
[1723202312165,35.34,156.5,156.49,0.12549]
[1723202312545,35.34,156.5,156.49,0.25098]
[1723202312745,35.34,156.52,156.49,0.25098]
[1723202313974,41.7298,156.5,156.45,6.3916]
[1723202314265,41.7298,156.5,156.46,0.25098]
[1723202314666,6.3914,156.46,156.41,22.9442]
[1723202314870,35.34,156.46,156.42,6.3929]
[1723202315377,35.34,156.5,156.41,16.5508]
[1723202315674,35.34,156.52,156.42,35.81138705]
[1723202315865,35.34,156.52,156.44,35.34]
[1723202316172,35.34,156.52,156.4,35.34]
[1723202316173,28.72713341,156.6,156.52,6.3885]
[1723202316356,35.34,156.57,156.5,0.12549]
[1723202316674,35.34,156.55,156.5,0.25098]
[1723202317453,35.34,156.53,156.5,0.25098]
[1723202317967,35.34,156.55,156.5,0.25098]
[1723202318368,6.389,156.52,156.5,0.25098]
[1723202318664,35.34,156.53,156.5,0.25098]
[1723202318974,35.34,156.53,156.5,6.64068]
[1723202319479,35.34,156.53,156.5,0.25098]
[1723202319771,27.48,156.51,156.5,0.25098]
[1723202319948,29.07773125,156.51,156.5,0.12549]
[1723202320149,27.48,156.51,156.5,0.12549]
[1723202320978,27.48,156.52,156.5,0.12549]
[1723202321183,27.48,156.52,156.51,0.12549]
[1723202321772,27.48,156.52,156.5,0.12549]
[1723202321981,27.48,156.51,156.49,0.25098]
[1723202322971,27.48,156.51,156.49,6.64098]
[1723202323660,27.48,156.53,156.51,6.3893]
[1723202323862,6.131,156.6,156.49,27.73098]
[1723202324166,33.8669,156.57,156.54,0.12549]
[1723202324374,33.8669,156.57,156.54,0.25098]
[1723202325171,47.48,156.56,156.54,0.25098]
[1723202325771,53.8673,156.56,156.54,0.25098]
[1723202326158,33.8673,156.56,156.54,0.25098]
[1723202326365,6.131,156.6,156.54,0.25098]
[1723202326674,27.48,156.57,156.54,0.25098]
[1723202327054,6.2231,156.64,156.58,6.3864]
[1723202327274,27.48,156.61,156.59,0.12549]
[1723202327581,27.48,156.62,156.59,0.12549]
[1723202327778,27.48,156.62,156.59,0.25098]
[1723202328582,33.865,156.62,156.59,0.25098]
[1723202328781,33.865,156.62,156.58,0.25098]
[1723202329485,6.385,156.62,156.59,0.12549]
[1723202329691,27.48,156.61,156.59,0.12549]
[1723202330282,15.9551,156.69,156.59,0.12549]
[1723202330463,27.48,156.64,156.59,16.42239]
[1723202330663,27.48,156.64,156.6,0.12549]
[1723202330873,33.8642,156.64,156.6,0.12549]
[1723202331565,6.3844,156.63,156.6,0.12549]
[1723202333487,27.48,156.62,156.6,0.12549]
[1723202333861,2.58292356,156.69,156.6,0.12549]
[1723202333862,31.9127,156.68,156.6,0.12549]
[1723202334067,6.3849,156.62,156.6,0.12549]
[1723202334282,33.8649,156.62,156.6,0.12549]
[1723202334581,33.8652,156.61,156.6,0.12549]
[1723202335667,27.48,156.61,156.55,15.2167]
[1723202335868,27.48,156.58,156.55,15.2167]
[1723202336078,33.867,156.57,156.55,15.2167]
[1723202336583,27.48,156.56,156.51,6.2194]
[1723202336886,1.59686291,156.6,156.5,15.4315]
[1723202336887,27.48,156.54,156.5,21.8208]
[1723202337984,27.48,156.54,156.51,0.25098]
[1723202338171,33.8682,156.54,156.5,15.4315]
[1723202338365,15.9659,156.59,156.5,15.4315]
[1723202338366,27.48,156.52,156.5,15.4315]
[1723202338567,27.48,156.51,156.48,6.3905]
[1723202338990,27.48,156.5,156.46,15.0977]
[1723202339179,27.48,156.5,156.46,21.4887]
[1723202339579,27.48,156.51,156.47,6.3909]
[1723202339887,27.48,156.51,156.48,6.3904]
[1723202340386,27.48,156.51,156.47,6.51639]
[1723202340685,27.48,156.48,156.43,6.2407]
[1723202340982,27.48,156.48,156.42,15.2703]
[1723202340983,27.48,156.46,156.42,21.6629]
[1723202341486,27.48,156.46,156.42,15.2703]
[1723202341487,33.8714,156.46,156.42,15.2703]
[1723202341689,27.48,156.46,156.42,15.2703]
[1723202341881,22.61449382,156.53,156.44,6.3922]
[1723202342080,27.48,156.47,156.44,6.3922]
[1723202343285,27.48,156.46,156.43,6.3925]
[1723202343592,27.48,156.46,156.44,0.25098]
[1723202343778,27.48,156.47,156.44,0.25098]
[1723202344177,33.8707,156.48,156.44,6.64308]
[1723202344385,27.48,156.47,156.44,6.64308]
[1723202345185,27.48,156.46,156.44,0.25098]
[1723202345495,33.8721,156.45,156.43,0.12549]
[1723202345972,27.48,156.46,156.43,0.12549]
[1723202346600,33.8714,156.46,156.43,0.12549]
[1723202346781,33.8714,156.46,156.43,0.25098]
[1723202347778,27.48,156.45,156.43,0.25098]
[1723202347978,27.48,156.46,156.43,0.25098]
[1723202348697,27.48,156.45,156.43,0.25098]
[1723202349092,33.8714,156.46,156.43,0.25098]
[1723202350623,27.48,156.47,156.43,6.64338]
[1723202350914,27.48,156.49,156.43,0.25098]
[1723202351211,33.8705,156.49,156.45,0.12549]
[1723202351388,6.391,156.47,156.45,0.25098]
[1723202351576,33.8714,156.46,156.45,0.12549]
[1723202352017,6.3926,156.44,156.43,0.12549]
[1723202352312,33.8726,156.44,156.43,0.25098]
[1723202352538,27.48,156.44,156.43,0.25098]
[1723202352685,33.8714,156.46,156.43,0.25098]
[1723202353187,27.48,156.47,156.43,0.25098]
[1723202353380,27.48,156.47,156.43,6.64348]
[1723202353783,27.48,156.45,156.43,0.25098]
[1723202354198,33.8719,156.45,156.43,0.25098]
[1723202354394,33.8722,156.44,156.43,0.25098]
[1723202354811,6.3926,156.43,156.39,6.3938]
[1723202355012,27.48,156.43,156.39,6.3938]
[1723202355213,27.48,156.44,156.4,6.3938]
[1723202355423,33.8718,156.45,156.4,6.3938]
[1723202355612,27.48,156.44,156.4,6.3938]
[1723202356087,27.48,156.44,156.41,0.12549]
[1723202356285,27.48,156.44,156.41,0.25098]
[1723202359605,33.8722,156.44,156.41,0.25098]
[1723202363125,33.8719,156.45,156.41,6.64428]
[1723202364141,33.8719,156.45,156.41,0.25098]
[1723202364324,27.48,156.44,156.41,0.25098]
[1723202366334,27.48,156.43,156.41,0.25098]
[1723202366520,65.639,156.48,156.41,0.25098]
[1723202366521,35.47146248,156.42,156.41,0.12549]
[1723202366726,33.873,156.42,156.41,0.12549]
[1723202367124,27.48,156.42,156.37,16.5506]
[1723202367316,15.979,156.46,156.37,16.5506]
[1723202367317,27.48,156.4,156.37,16.5506]
[1723202367524,33.8735,156.41,156.37,16.5506]
[1723202367725,35.47251122,156.4,156.37,16.5506]
[1723202367932,33.8739,156.4,156.37,16.5506]
[1723202368333,27.48,156.41,156.37,16.5506]
[1723202369320,27.48,156.41,156.38,0.25098]
[1723202369514,33.8734,156.41,156.38,0.25098]
[1723202369718,27.48,156.4,156.38,0.25098]
[1723202370235,27.48,156.4,156.38,0.12549]
[1723202370442,27.48,156.39,156.35,6.3955]
[1723202370629,27.48,156.41,156.37,6.3949]
[1723202371242,27.48,156.41,156.38,6.3946]
[1723202371646,33.8719,156.45,156.4,6.3935]
[1723202371938,33.8719,156.45,156.41,0.25098]
[1723202372343,27.48,156.44,156.41,0.12549]
[1723202372546,27.48,156.44,156.4,0.25098]
[1723202372736,27.48,156.43,156.4,0.25098]
[1723202373438,27.48,156.42,156.4,0.25098]
[1723202374018,27.48,156.44,156.4,0.25098]
[1723202374339,27.48,156.46,156.43,6.3926]
[1723202374648,27.48,156.46,156.44,0.12549]
[1723202374946,27.48,156.46,156.44,0.25098]
[1723202375147,27.48,156.46,156.45,0.25098]
[1723202375527,27.48,156.46,156.45,0.12549]
[1723202376347,44.11207469,156.52,156.43,0.12549]
[1723202376348,27.48,156.49,156.46,6.3911]
[1723202376514,33.8703,156.49,156.47,0.12549]
[1723202376933,27.48,156.48,156.47,0.12549]
[1723202378043,27.48,156.49,156.47,0.12549]
[1723202378438,27.48,156.51,156.48,0.12549]
[1723202378633,27.48,156.52,156.48,6.51559]
[1723202378845,33.8689,156.53,156.49,6.51559]
[1723202379040,6.3889,156.53,156.5,0.12549]
[1723202379356,6.3889,156.52,156.5,0.25098]
[1723202379840,6.3889,156.52,156.5,0.12549]
[1723202380043,33.8689,156.52,156.49,0.25098]
[1723202380242,27.48,156.51,156.49,0.25098]
[1723202380638,50.0885,156.56,156.41,15.873]
[1723202380639,29.07753613,156.5,156.41,15.873]
[1723202380844,27.48,156.46,156.42,6.3928]
[1723202381632,27.48,156.44,156.41,15.873]
[1723202381840,33.8725,156.44,156.41,15.873]
[1723202382959,27.48,156.44,156.42,0.12549]
[1723202383164,1.59815166,156.44,156.42,0.12549]
[1723202383347,27.48,156.43,156.42,0.12549]
[1723202384034,33.8726,156.43,156.42,0.12549]
[1723202384237,33.8726,156.43,156.38,6.3946]
[1723202384471,27.48,156.41,156.38,6.3946]
[1723202384950,27.48,156.41,156.39,6.3941]
[1723202385546,27.48,156.41,156.4,0.25098]
[1723202386337,27.48,156.48,156.4,0.25098]
[1723202386338,27.48,156.43,156.4,0.25098]
[1723202386661,27.48,156.46,156.42,0.12549]
[1723202386867,27.48,156.47,156.42,0.12549]
[1723202387162,27.48,156.47,156.42,0.25098]
[1723202387368,27.48,156.47,156.44,0.12549]
[1723202387550,27.48,156.45,156.42,0.12549]
[1723202387756,27.48,156.43,156.42,0.12549]
[1723202387938,27.48,156.43,156.42,0.25098]
[1723202388137,33.8726,156.43,156.42,0.12549]
[1723202388364,27.48,156.43,156.42,0.25098]
[1723202388663,27.48,156.44,156.42,0.25098]
[1723202389263,27.48,156.45,156.43,6.51799]
[1723202389471,27.48,156.45,156.44,0.12549]
[1723202389670,27.48,156.46,156.44,0.12549]
[1723202390466,33.8715,156.46,156.43,0.25098]
[1723202390760,27.48,156.45,156.43,0.25098]
[1723202390949,27.48,156.45,156.42,0.25098]
[1723202393542,33.8718,156.45,156.42,0.25098]
[1723202394362,27.48,156.45,156.42,0.25098]
[1723202394586,33.8719,156.45,156.42,0.25098]
[1723202395970,27.48,156.45,156.42,0.25098]
[1723202396349,27.48,156.45,156.42,6.64398]
[1723202396696,6.3917,156.46,156.42,0.25098]
[1723202396888,27.48,156.45,156.42,0.25098]
[1723202397476,27.48,156.46,156.42,6.64388]
[1723202397867,27.48,156.46,156.43,6.3925]
[1723202398074,27.48,156.46,156.44,0.25098]
[1723202398459,23.3283,156.53,156.44,0.25098]
[1723202398775,33.8702,156.49,156.46,0.12549]
[1723202398982,33.8702,156.49,156.46,0.25098]
[1723202399561,33.8702,156.49,156.45,0.25098]
[1723202400283,6.3906,156.48,156.45,0.25098]
[1723202400594,39.3002,156.53,156.45,0.25098]
[1723202400595,33.8714,156.46,156.45,0.12549]
[1723202401663,27.48,156.46,156.45,0.12549]
[1723202402671,33.8714,156.46,156.45,0.12549]
[1723202403394,27.48,156.46,156.4,16.3538]
[1723202403565,33.8726,156.43,156.41,0.25098]
[1723202403764,33.8726,156.43,156.41,0.12549]
[1723202404369,33.8726,156.43,156.4,16.3538]
[1723202404370,33.8731,156.42,156.4,16.3538]
[1723202404661,27.48,156.41,156.4,16.3538]
[1723202404859,27.48,156.42,156.4,16.3538]
[1723202405467,27.48,156.41,156.37,6.395]
[1723202405672,27.48,156.4,156.35,15.9929]
[1723202405960,27.48,156.37,156.35,15.9929]
[1723202406876,27.48,156.36,156.35,15.9929]
[1723202407060,27.48,156.36,156.31,17.0622]
[1723202407259,27.48,156.35,156.31,17.0622]
[1723202407463,27.48,156.36,156.31,17.0622]
[1723202407661,27.48,156.36,156.34,6.3963]
[1723202407876,27.48,156.37,156.34,6.3963]
[1723202408065,27.48,156.36,156.35,0.12549]
[1723202408275,27.48,156.36,156.35,0.25098]
[1723202410314,27.48,156.36,156.34,0.25098]
[1723202410801,27.48,156.35,156.34,0.12549]
[1723202411398,27.48,156.35,156.31,0.5]
[1723202411605,17.03266238,156.36,156.31,0.5]
[1723202411606,27.48,156.32,156.31,0.5]
[1723202412783,27.48,156.35,156.32,6.397]
[1723202412982,27.48,156.35,156.31,0.5]
[1723202413481,27.48,156.35,156.32,0.25098]
[1723202413981,27.48,156.38,156.32,0.25098]
[1723202414309,33.8743,156.39,156.35,0.12549]
[1723202414485,33.8739,156.4,156.35,6.64678]
[1723202414898,27.48,156.4,156.35,0.25098]
[1723202415206,15.9817,156.43,156.33,33.8765]
[1723202415207,27.48,156.38,156.36,0.12549]
[1723202415400,33.8748,156.38,156.34,6.64728]
[1723202415603,22.66437679,156.43,156.35,6.52129]
[1723202415604,6.3943,156.39,156.35,6.52129]
[1723202415786,27.48,156.4,156.37,0.12549]
[1723202416179,27.48,156.4,156.37,0.25098]
[1723202416720,33.8735,156.41,156.37,0.25098]
[1723202417014,10.01990502,156.46,156.39,27.60549]
[1723202417311,6.3914,156.46,156.41,27.60549]
[1723202417487,6.3914,156.46,156.41,6.51889]
[1723202417688,6.3914,156.46,156.43,0.12549]
[1723202419317,6.3909,156.48,156.43,6.51789]
[1723202419492,6.3909,156.48,156.44,6.86358846]
[1723202419810,6.3909,156.48,156.45,0.12549]
[1723202420307,6.3909,156.48,156.44,0.12549]
[1723202420710,27.48,156.49,156.44,0.12549]
[1723202420912,27.48,156.47,156.43,0.25098]
[1723202421113,6.3915,156.46,156.43,0.25098]
[1723202422107,27.48,156.48,156.43,0.25098]
[1723202422108,6.391,156.47,156.43,0.25098]
[1723202422314,33.8706,156.48,156.43,0.25098]
[1723202422508,27.48,156.53,156.46,0.12549]
[1723202422703,27.48,156.53,156.46,28.45240148]
[1723202423023,22.509,156.56,156.46,28.45240148]
[1723202423024,27.48,156.56,156.49,27.60549]
[1723202423319,6.3866,156.58,156.54,0.12549]
[1723202423621,33.8661,156.59,156.54,6.63898]
[1723202423921,6.3865,156.58,156.54,0.25098]
[1723202424613,6.3861,156.59,156.54,6.63898]
[1723202424800,33.8651,156.62,156.57,6.3868]
[1723202425002,274.9693129,156.7,156.58,27.73098]
[1723202425330,27.48,156.65,156.58,28.19892041]
[1723202425495,27.48,156.67,156.6,27.60549]
[1723202425700,27.48,156.67,156.61,0.25098]
[1723202425701,6.3833,156.66,156.61,0.25098]
[1723202426100,33.8633,156.66,156.61,0.25098]
[1723202426337,6.3838,156.65,156.6,6.63658]
[1723202427812,6.3841,156.64,156.6,0.25098]
[1723202430300,0.3040129,156.7,156.61,27.94711752]
[1723202430601,6.3833,156.66,156.64,0.12549]
[1723202430796,27.48,156.67,156.64,0.12549]
[1723202431026,0.3040129,156.7,156.64,0.12549]
[1723202431027,27.48,156.68,156.64,0.12549]
[1723202431200,27.48,156.68,156.63,0.12549]
[1723202431604,6.3836,156.65,156.63,0.12549]
[1723202432497,27.48,156.67,156.63,0.12549]
[1723202432702,27.48,156.68,156.63,0.12549]
[1723202432918,6.3832,156.66,156.63,0.12549]
[1723202433129,6.3837,156.65,156.63,0.12549]
[1723202433308,6.3833,156.66,156.63,0.12549]
[1723202433510,6.3835,156.66,156.63,0.12549]
[1723202433702,6.384,156.65,156.63,0.12549]
[1723202433903,33.8628,156.67,156.63,0.12549]
[1723202434111,6.3824,156.68,156.63,0.12549]
[1723202434329,6.3829,156.67,156.63,0.12549]
[1723202435628,6.3825,156.68,156.63,6.50989]
[1723202435812,0.3040129,156.7,156.65,0.12549]
[1723202435813,27.7840129,156.7,156.65,0.12549]
[1723202436023,27.7840129,156.7,156.65,0.25098]
[1723202436024,6.3821,156.69,156.65,0.25098]
[1723202436218,6.3821,156.69,156.66,0.12549]
[1723202436540,6.6856129,156.7,156.66,0.12549]
[1723202437225,6.382,156.69,156.66,0.12549]
[1723202438330,0.3040129,156.7,156.68,0.12549]
[1723202439116,27.7840129,156.7,156.66,0.25098]
[1723202439332,27.7840129,156.7,156.66,0.12549]
[1723202439333,0.3040129,156.7,156.66,0.12549]
[1723202439506,0.3040129,156.7,156.67,0.12549]
[1723202439713,0.3040129,156.7,156.67,0.25098]
[1723202440120,6.6856129,156.7,156.67,0.25098]
[1723202440441,6.6856129,156.7,156.67,0.12549]
[1723202440609,6.6856129,156.7,156.66,0.25098]
[1723202441228,6.382,156.69,156.66,0.25098]
[1723202443629,34.1656129,156.7,156.66,0.25098]
[1723202444932,6.6856129,156.7,156.66,6.63408]
[1723202445628,6.6856129,156.7,156.66,0.25098]
[1723202445833,0.3040129,156.7,156.66,6.63398]
[1723202446426,0.3040129,156.7,156.68,6.3824]
[1723202446741,0.3040129,156.7,156.69,0.12549]
[1723202447114,27.7840129,156.7,156.69,0.12549]
[1723202447322,0.3040129,156.7,156.69,0.12549]
[1723202449737,6.6856129,156.7,156.69,0.12549]
[1723202450155,8.2811561,156.7,156.69,0.12549]
[1723202450848,0.3040129,156.7,156.69,0.12549]
[1723202451025,6.6856129,156.7,156.69,0.12549]
[1723202451558,0.3040129,156.7,156.65,16.1436]
[1723202452228,0.3040129,156.7,156.65,43.6236]
[1723202452645,0.3040129,156.7,156.66,0.25098]
[1723202452952,0.3040129,156.7,156.66,6.63408]
[1723202453143,6.6857129,156.7,156.66,6.63408]
[1723202453677,0.3040129,156.7,156.66,6.63408]
[1723202455950,0.3040129,156.7,156.67,6.3827]
[1723202456131,0.3040129,156.7,156.68,0.25098]
[1723202457356,0.3040129,156.7,156.69,0.12549]
[1723202458054,0.3040129,156.7,156.69,6.50749]
[1723202458255,0.3040129,156.7,156.69,6.63298]
[1723202460148,0.3040129,156.7,156.69,0.25098]
[1723202461052,19.0940129,156.7,156.69,0.25098]
[1723202461256,0.3040129,156.7,156.69,0.25098]
[1723202461432,0.3040129,156.7,156.69,25.88829367]
[1723202461633,0.3040129,156.7,156.69,26.13927367]
[1723202462533,0.3040129,156.7,156.69,25.67396]
[1723202463832,0.3040129,156.7,156.69,70.67396]
[1723202464552,0.3040129,156.7,156.69,25.67396]
[1723202465249,0.3040129,156.7,156.69,70.67396]
[1723202466539,0.3040129,156.7,156.69,86.84446]
[1723202467058,18.79,156.79,156.77,0.12549]
[1723202467252,18.79,156.79,156.77,0.25098]
[1723202469065,18.79,156.8,156.77,0.25098]
[1723202469365,18.79,156.82,156.79,25.29339]
[1723202469668,18.79,156.82,156.8,0.12549]
[1723202469872,17.2006129,156.86,156.8,0.12549]
[1723202470157,0.8040129,156.86,156.82,0.12549]
[1723202470334,18.79,156.85,156.82,0.25098]
[1723202470535,18.79,156.84,156.82,0.25098]
[1723202470735,18.79,156.83,156.82,0.12549]
[1723202471244,0.8040129,156.86,156.82,0.12549]
[1723202471564,18.79,156.83,156.82,0.12549]
[1723202471760,27.36,156.84,156.82,0.12549]
[1723202472863,2.39818807,156.86,156.82,0.12549]
[1723202472864,34.5391129,156.86,156.82,0.12549]
[1723202473042,7.1791129,156.86,156.82,0.12549]
[1723202473568,0.8040129,156.86,156.84,0.12549]
[1723202473773,0.8040129,156.86,156.85,6.50099]
[1723202473934,0.8040129,156.86,156.85,34.23746]
[1723202474566,0.8040129,156.86,156.85,85.50876]
[1723202474863,6.3714,156.95,156.85,79.13326]
[1723202475073,13.03281614,156.97,156.91,0.12549]
[1723202475276,6.3704,156.98,156.94,0.12549]
[1723202475443,33.7298,156.99,156.94,0.37647]
[1723202475636,27.36,156.98,156.94,0.25098]
[1723202475838,33.7295,157.0,156.96,0.12549]